[Event "Titled Tuesday Blitz November 14 Late 2023"]
[White "ilya2700"]
[Black "Taboas Rodriguez, Daniel"]
[BlackFideId "2208466"]
[WhiteElo "2270"]
[BlackElo "2567"]
[Result "0-1"]
[Round "1"]
[TimeControl "180+1"]
[Date "2023.11.14"]
[WhiteClock "0:00:00"]
[BlackClock "0:00:52"]
[Board "139"]

1. d4 {[%clk 0:03:00]}  Nf6 {[%clk 0:02:59]} 2. c4 {[%clk 0:03:00]}  g6 {[%clk 0:02:59]} 3. Nc3 {[%clk 0:03:00]}  Bg7 {[%clk 0:02:59]} 4. e4 {[%clk 0:03:00]}  d6 {[%clk 0:03:00]} 5. f4 {[%clk 0:03:01]}  O-O {[%clk 0:03:01]} 6. Nf3 {[%clk 0:03:01]}  Na6 {[%clk 0:03:01]} 7. Bd3 {[%clk 0:03:01]}  e5 {[%clk 0:03:01]} 8. fxe5 {[%clk 0:03:01]}  dxe5 {[%clk 0:03:02]} 9. d5 {[%clk 0:03:01]}  Nc5 {[%clk 0:03:01]} 10. Bc2 {[%clk 0:03:02]}  a5 {[%clk 0:03:01]} 11. O-O {[%clk 0:03:01]}  Nh5 {[%clk 0:02:55]} 12. Be3 {[%clk 0:02:59]}  Qe7 {[%clk 0:02:54]} 13. Kh1 {[%clk 0:02:30]}  Bd7 {[%clk 0:02:48]} 14. a3 {[%clk 0:02:25]}  a4 {[%clk 0:02:45]} 15. Bxc5 {[%clk 0:02:01]}  Qxc5 {[%clk 0:02:46]} 16. Bxa4 {[%clk 0:01:42]}  Bxa4 {[%clk 0:02:43]} 17. Nxa4 {[%clk 0:01:43]}  Qxc4 {[%clk 0:02:44]} 18. Nc3 {[%clk 0:01:36]}  Nf4 {[%clk 0:02:41]} 19. Rc1 {[%clk 0:01:30]}  Nd3 {[%clk 0:02:33]} 20. Rc2 {[%clk 0:01:26]}  Nxb2 {[%clk 0:02:30]} 21. Qb1 {[%clk 0:00:59]}  Nd3 {[%clk 0:02:20]} 22. Nb5 {[%clk 0:00:45]}  Qxe4 {[%clk 0:02:19]} 23. Nxc7 {[%clk 0:00:35]}  Rxa3 {[%clk 0:02:19]} 24. d6 {[%clk 0:00:28]}  Rd8 {[%clk 0:02:02]} 25. Ng5 {[%clk 0:00:28]}  Qg4 {[%clk 0:01:35]} 26. Nxf7 {[%clk 0:00:28]}  Rf8 {[%clk 0:01:28]} 27. Nd5 {[%clk 0:00:08]}  Rxf7 {[%clk 0:01:17]} 28. Rxf7 {[%clk 0:00:07]}  Kxf7 {[%clk 0:01:18]} 29. Qxb7+ {[%clk 0:00:07]}  Ke6 {[%clk 0:01:09]} 30. Qc8+ {[%clk 0:00:06]}  Kxd5 {[%clk 0:01:01]} 31. Qc6+ {[%clk 0:00:02]}  Ke6 {[%clk 0:00:59]} 32. Qe8+ {[%clk 0:00:01]}  Kf5 {[%clk 0:00:53]} 33. Qf7+ {[%clk 0:00:01]}  Kg5 {[%clk 0:00:53]} 34. Qe7+ {[%clk 0:00:01]}  Kh5 {[%clk 0:00:53]} 35. d7 {[%clk 0:00:00]}  Ra1+ {[%clk 0:00:52]} 0-1


[Site "https://www.chess.com"]

[Event "Titled Tuesday Blitz November 14 Late 2023"]
[White "Sarkar, Justin"]
[Black "Bettalli, Francesco"]
[WhiteFideId "2010011"]
[BlackFideId "2816453"]
[WhiteElo "2256"]
[BlackElo "2566"]
[Result "1-0"]
[Round "1"]
[TimeControl "180+1"]
[Date "2023.11.14"]
[WhiteClock "0:00:45"]
[BlackClock "0:01:10"]
[Board "141"]

1. d4 {[%clk 0:02:37]}  Nf6 {[%clk 0:02:58]} 2. c4 {[%clk 0:02:37]}  c5 {[%clk 0:02:54]} 3. d5 {[%clk 0:02:36]}  a6 {[%clk 0:02:54]} 4. Qc2 {[%clk 0:02:33]}  e6 {[%clk 0:02:53]} 5. e4 {[%clk 0:02:31]}  exd5 {[%clk 0:02:45]} 6. cxd5 {[%clk 0:02:12]}  d6 {[%clk 0:02:43]} 7. a4 {[%clk 0:02:05]}  g6 {[%clk 0:02:41]} 8. Nc3 {[%clk 0:02:02]}  Bg7 {[%clk 0:02:41]} 9. Nf3 {[%clk 0:02:00]}  O-O {[%clk 0:02:42]} 10. Nd2 {[%clk 0:01:56]}  Nbd7 {[%clk 0:02:41]} 11. Be2 {[%clk 0:01:55]}  h5 {[%clk 0:02:40]} 12. O-O {[%clk 0:01:52]}  Ne5 {[%clk 0:02:37]} 13. h3 {[%clk 0:01:47]}  Nh7 {[%clk 0:02:13]} 14. f4 {[%clk 0:01:43]}  Nd7 {[%clk 0:02:12]} 15. Nc4 {[%clk 0:01:42]}  Qe7 {[%clk 0:02:09]} 16. e5 {[%clk 0:01:39]}  dxe5 {[%clk 0:02:08]} 17. d6 {[%clk 0:01:36]}  Qe6 {[%clk 0:02:07]} 18. f5 {[%clk 0:01:34]}  Qe8 {[%clk 0:02:03]} 19. Nd5 {[%clk 0:01:21]}  Rb8 {[%clk 0:01:48]} 20. fxg6 {[%clk 0:01:18]}  fxg6 {[%clk 0:01:47]} 21. Ne7+ {[%clk 0:01:17]}  Kh8 {[%clk 0:01:45]} 22. Nxg6+ {[%clk 0:01:17]}  Kg8 {[%clk 0:01:45]} 23. Ne7+ {[%clk 0:01:16]}  Kh8 {[%clk 0:01:45]} 24. Ng6+ {[%clk 0:01:15]}  Kg8 {[%clk 0:01:45]} 25. Bxh5 {[%clk 0:01:13]}  Rxf1+ {[%clk 0:01:44]} 26. Kxf1 {[%clk 0:01:12]}  Qf7+ {[%clk 0:01:44]} 27. Kg1 {[%clk 0:01:11]}  Qf6 {[%clk 0:01:25]} 28. Ne7+ {[%clk 0:01:03]}  Kh8 {[%clk 0:01:25]} 29. Ng6+ {[%clk 0:01:03]}  Kg8 {[%clk 0:01:25]} 30. Ne7+ {[%clk 0:01:02]}  Kf8 {[%clk 0:01:26]} 31. Qxh7 {[%clk 0:00:58]}  Qe6 {[%clk 0:01:22]} 32. Ng6+ {[%clk 0:00:51]}  Ke8 {[%clk 0:01:20]} 33. Nf4+ {[%clk 0:00:49]}  Qf7 {[%clk 0:01:10]} 34. Qg8+ {[%clk 0:00:45]} 1-0


[Site "https://www.chess.com"]

[Event "Titled Tuesday Blitz November 14 Late 2023"]
[White "Golubenko, Valentina"]
[Black "Ribeiro, Matheus Mendes Domingues"]
[WhiteFideId "4501993"]
[BlackFideId "324226923"]
[WhiteElo "2246"]
[BlackElo "2559"]
[Result "0-1"]
[Round "1"]
[TimeControl "180+1"]
[Date "2023.11.14"]
[WhiteClock "0:01:38"]
[BlackClock "0:00:44"]
[Board "143"]

1. d4 {[%clk 0:02:54]}  d5 {[%clk 0:02:47]} 2. Nf3 {[%clk 0:02:52]}  e6 {[%clk 0:02:46]} 3. g3 {[%clk 0:02:52]}  Nf6 {[%clk 0:02:47]} 4. Bg2 {[%clk 0:02:52]}  Be7 {[%clk 0:02:47]} 5. O-O {[%clk 0:02:52]}  O-O {[%clk 0:02:48]} 6. c4 {[%clk 0:02:51]}  dxc4 {[%clk 0:02:48]} 7. Nbd2 {[%clk 0:02:51]}  Nbd7 {[%clk 0:02:21]} 8. Nxc4 {[%clk 0:02:50]}  c5 {[%clk 0:02:22]} 9. Bf4 {[%clk 0:02:48]}  Nb6 {[%clk 0:02:10]} 10. Nxb6 {[%clk 0:02:41]}  Qxb6 {[%clk 0:02:11]} 11. b3 {[%clk 0:02:37]}  Bd7 {[%clk 0:02:06]} 12. Rc1 {[%clk 0:02:32]}  Rac8 {[%clk 0:01:55]} 13. Ne5 {[%clk 0:02:30]}  Bb5 {[%clk 0:01:52]} 14. dxc5 {[%clk 0:02:21]}  Bxc5 {[%clk 0:01:47]} 15. Qc2 {[%clk 0:02:07]}  Bxf2+ {[%clk 0:01:40]} 16. Rxf2 {[%clk 0:02:07]}  Rxc2 {[%clk 0:01:40]} 17. Rxc2 {[%clk 0:02:07]}  Rd8 {[%clk 0:01:34]} 18. Nd3 {[%clk 0:01:48]}  Ng4 {[%clk 0:01:32]} 19. e3 {[%clk 0:01:46]}  Bxd3 {[%clk 0:01:17]} 20. Bc7 {[%clk 0:01:42]}  Qxe3 {[%clk 0:00:59]} 21. Bxd8 {[%clk 0:01:38]}  Bxc2 {[%clk 0:00:44]} 0-1


[Site "https://www.chess.com"]

[Event "Titled Tuesday Blitz November 14 Late 2023"]
[White "Karamsetty, Jeevan"]
[Black "Dodaro, Mattia"]
[WhiteFideId "2025337"]
[BlackFideId "28583400"]
[WhiteElo "2558"]
[BlackElo "2244"]
[Result "1-0"]
[Round "1"]
[TimeControl "180+1"]
[Date "2023.11.14"]
[WhiteClock "0:00:46"]
[BlackClock "0:00:02"]
[Board "144"]

1. e4 {[%clk 0:03:00]}  Nc6 {[%clk 0:02:59]} 2. d4 {[%clk 0:02:55]}  d6 {[%clk 0:03:00]} 3. c3 {[%clk 0:02:49]}  g6 {[%clk 0:02:57]} 4. Bd3 {[%clk 0:02:49]}  Bg7 {[%clk 0:02:53]} 5. h3 {[%clk 0:02:49]}  Nf6 {[%clk 0:02:49]} 6. Nf3 {[%clk 0:02:49]}  O-O {[%clk 0:02:49]} 7. O-O {[%clk 0:02:49]}  e5 {[%clk 0:02:48]} 8. Re1 {[%clk 0:02:47]}  Re8 {[%clk 0:02:43]} 9. Nbd2 {[%clk 0:02:45]}  Nh5 {[%clk 0:02:34]} 10. d5 {[%clk 0:02:31]}  Ne7 {[%clk 0:02:30]} 11. Nf1 {[%clk 0:02:32]}  Rf8 {[%clk 0:02:25]} 12. c4 {[%clk 0:02:08]}  f5 {[%clk 0:02:17]} 13. exf5 {[%clk 0:02:09]}  Bxf5 {[%clk 0:01:54]} 14. Bxf5 {[%clk 0:02:06]}  Nxf5 {[%clk 0:01:42]} 15. Ng5 {[%clk 0:01:56]}  Nd4 {[%clk 0:01:34]} 16. Be3 {[%clk 0:01:45]}  h6 {[%clk 0:01:21]} 17. Ne4 {[%clk 0:01:21]}  Nf4 {[%clk 0:01:17]} 18. Nfg3 {[%clk 0:01:16]}  Nf5 {[%clk 0:01:09]} 19. Bxf4 {[%clk 0:01:13]}  exf4 {[%clk 0:01:08]} 20. Nxf5 {[%clk 0:01:13]}  Rxf5 {[%clk 0:01:06]} 21. Qg4 {[%clk 0:01:11]}  Kh7 {[%clk 0:01:03]} 22. Qf3 {[%clk 0:01:04]}  Bxb2 {[%clk 0:00:55]} 23. Rab1 {[%clk 0:01:04]}  Bd4 {[%clk 0:00:54]} 24. Rxb7 {[%clk 0:01:04]}  Bb6 {[%clk 0:00:52]} 25. c5 {[%clk 0:00:55]}  dxc5 {[%clk 0:00:49]} 26. d6 {[%clk 0:00:55]}  Qc8 {[%clk 0:00:39]} 27. dxc7 {[%clk 0:00:52]}  Bxc7 {[%clk 0:00:09]} 28. Nd6 {[%clk 0:00:47]}  Rf6 {[%clk 0:00:02]} 29. Nxc8 {[%clk 0:00:46]} 1-0


[Site "https://www.chess.com"]

[Event "Titled Tuesday Blitz November 14 Late 2023"]
[White "Lock, Gavin R"]
[Black "sjoerd893"]
[WhiteFideId "408646"]
[WhiteElo "2233"]
[BlackElo "2555"]
[Result "0-1"]
[Round "1"]
[TimeControl "180+1"]
[Date "2023.11.14"]
[WhiteClock "0:00:00"]
[BlackClock "0:00:11"]
[Board "145"]

1. e4 {[%clk 0:02:57]}  c5 {[%clk 0:02:59]} 2. Nf3 {[%clk 0:02:56]}  Nc6 {[%clk 0:02:57]} 3. Bb5 {[%clk 0:02:56]}  g6 {[%clk 0:02:57]} 4. O-O {[%clk 0:02:57]}  Bg7 {[%clk 0:02:55]} 5. Re1 {[%clk 0:02:57]}  Nf6 {[%clk 0:02:49]} 6. c3 {[%clk 0:02:57]}  O-O {[%clk 0:02:46]} 7. d4 {[%clk 0:02:57]}  cxd4 {[%clk 0:02:42]} 8. cxd4 {[%clk 0:02:57]}  d5 {[%clk 0:02:41]} 9. e5 {[%clk 0:02:56]}  Ne8 {[%clk 0:02:38]} 10. Be3 {[%clk 0:02:49]}  Qb6 {[%clk 0:02:33]} 11. Nc3 {[%clk 0:02:45]}  e6 {[%clk 0:02:22]} 12. Qd2 {[%clk 0:02:32]}  Nc7 {[%clk 0:01:54]} 13. Bf1 {[%clk 0:02:23]}  a6 {[%clk 0:01:42]} 14. Rac1 {[%clk 0:02:15]}  Qa5 {[%clk 0:01:23]} 15. Bh6 {[%clk 0:02:03]}  Bd7 {[%clk 0:01:13]} 16. Qf4 {[%clk 0:01:53]}  Ne8 {[%clk 0:01:01]} 17. Rcd1 {[%clk 0:01:33]}  b5 {[%clk 0:00:59]} 18. a3 {[%clk 0:01:30]}  Rc8 {[%clk 0:00:54]} 19. h4 {[%clk 0:01:30]}  Ne7 {[%clk 0:00:53]} 20. h5 {[%clk 0:01:21]}  b4 {[%clk 0:00:40]} 21. axb4 {[%clk 0:01:19]}  Qxb4 {[%clk 0:00:41]} 22. Rd2 {[%clk 0:01:02]}  Bb5 {[%clk 0:00:33]} 23. Bxb5 {[%clk 0:00:53]}  axb5 {[%clk 0:00:34]} 24. Bxg7 {[%clk 0:00:52]}  Nxg7 {[%clk 0:00:27]} 25. h6 {[%clk 0:00:32]}  Ne8 {[%clk 0:00:20]} 26. g3 {[%clk 0:00:28]}  Rc7 {[%clk 0:00:17]} 27. Re3 {[%clk 0:00:25]}  Ra7 {[%clk 0:00:16]} 28. Kg2 {[%clk 0:00:25]}  Qc4 {[%clk 0:00:15]} 29. Ng5 {[%clk 0:00:19]}  b4 {[%clk 0:00:14]} 30. Ne2 {[%clk 0:00:20]}  Nf5 {[%clk 0:00:13]} 31. Rf3 {[%clk 0:00:18]}  Rd7 {[%clk 0:00:11]} 32. g4 {[%clk 0:00:16]}  Nh4+ {[%clk 0:00:10]} 33. Kg3 {[%clk 0:00:15]}  Nxf3 {[%clk 0:00:11]} 34. Nxf3 {[%clk 0:00:12]}  Re7 {[%clk 0:00:11]} 35. Neg1 {[%clk 0:00:11]}  f6 {[%clk 0:00:10]} 36. exf6 {[%clk 0:00:10]}  Nxf6 {[%clk 0:00:11]} 37. Qe3 {[%clk 0:00:00]}  Ne4+ {[%clk 0:00:11]} 0-1


[Site "https://www.chess.com"]

[Event "Titled Tuesday Blitz November 14 Late 2023"]
[White "Fernandez Reyes, Lisandro"]
[Black "Chemin, Justo Reinaldo"]
[WhiteFideId "3504190"]
[BlackFideId "2101580"]
[WhiteElo "2554"]
[BlackElo "2216"]
[Result "1-0"]
[Round "1"]
[TimeControl "180+1"]
[Date "2023.11.14"]
[WhiteClock "0:00:21"]
[BlackClock "0:00:00"]
[Board "146"]

1. e4 {[%clk 0:03:00]}  e6 {[%clk 0:02:54]} 2. d3 {[%clk 0:03:00]}  c5 {[%clk 0:02:53]} 3. f4 {[%clk 0:02:58]}  b6 {[%clk 0:02:52]} 4. g3 {[%clk 0:02:57]}  Bb7 {[%clk 0:02:52]} 5. Bg2 {[%clk 0:02:58]}  g6 {[%clk 0:02:50]} 6. Nf3 {[%clk 0:02:57]}  Bg7 {[%clk 0:02:50]} 7. O-O {[%clk 0:02:58]}  Ne7 {[%clk 0:02:50]} 8. a4 {[%clk 0:02:55]}  a6 {[%clk 0:02:49]} 9. Na3 {[%clk 0:02:55]}  O-O {[%clk 0:02:44]} 10. Nc4 {[%clk 0:02:48]}  d5 {[%clk 0:02:38]} 11. exd5 {[%clk 0:02:48]}  exd5 {[%clk 0:02:29]} 12. Nce5 {[%clk 0:02:48]}  Nd7 {[%clk 0:02:27]} 13. c3 {[%clk 0:02:47]}  Nxe5 {[%clk 0:02:25]} 14. fxe5 {[%clk 0:02:47]}  d4 {[%clk 0:02:12]} 15. c4 {[%clk 0:02:46]}  Qc7 {[%clk 0:02:05]} 16. Bf4 {[%clk 0:02:45]}  Qd7 {[%clk 0:01:55]} 17. Qd2 {[%clk 0:02:42]}  Nc6 {[%clk 0:01:51]} 18. Rae1 {[%clk 0:02:42]}  Rae8 {[%clk 0:01:48]} 19. Bh6 {[%clk 0:02:38]}  Nb4 {[%clk 0:01:40]} 20. Bxg7 {[%clk 0:02:38]}  Kxg7 {[%clk 0:01:39]} 21. Ng5 {[%clk 0:02:29]}  Bxg2 {[%clk 0:01:30]} 22. Kxg2 {[%clk 0:02:29]}  h6 {[%clk 0:01:16]} 23. Nf3 {[%clk 0:02:17]}  Qxa4 {[%clk 0:01:16]} 24. Rf2 {[%clk 0:02:05]}  Qb3 {[%clk 0:01:14]} 25. Rd1 {[%clk 0:01:57]}  Re6 {[%clk 0:01:11]} 26. h4 {[%clk 0:01:57]}  Rfe8 {[%clk 0:01:09]} 27. h5 {[%clk 0:01:46]}  b5 {[%clk 0:01:04]} 28. cxb5 {[%clk 0:01:45]}  axb5 {[%clk 0:01:03]} 29. hxg6 {[%clk 0:01:46]}  fxg6 {[%clk 0:00:58]} 30. Rh1 {[%clk 0:01:34]}  Rh8 {[%clk 0:00:50]} 31. Ng5 {[%clk 0:00:51]}  Qd5+ {[%clk 0:00:36]} 32. Ne4 {[%clk 0:00:39]}  Rxe5 {[%clk 0:00:29]} 33. Rhf1 {[%clk 0:00:39]}  Rf5 {[%clk 0:00:25]} 34. Kg1 {[%clk 0:00:39]}  Nc6 {[%clk 0:00:21]} 35. g4 {[%clk 0:00:34]}  Rxf2 {[%clk 0:00:11]} 36. Qxf2 {[%clk 0:00:34]}  Qe6 {[%clk 0:00:05]} 37. Nxc5 {[%clk 0:00:29]}  Qxg4+ {[%clk 0:00:04]} 38. Qg2 {[%clk 0:00:29]}  Qxg2+ {[%clk 0:00:04]} 39. Kxg2 {[%clk 0:00:29]}  Ne5 {[%clk 0:00:05]} 40. Ne6+ {[%clk 0:00:28]}  Kh7 {[%clk 0:00:04]} 41. Nxd4 {[%clk 0:00:25]}  Rd8 {[%clk 0:00:04]} 42. Nxb5 {[%clk 0:00:23]}  Rxd3 {[%clk 0:00:03]} 43. Rf2 {[%clk 0:00:20]}  Rb3 {[%clk 0:00:03]} 44. Nd4 {[%clk 0:00:20]}  Nd3 {[%clk 0:00:03]} 45. Nxb3 {[%clk 0:00:18]}  Nxf2 {[%clk 0:00:04]} 46. Kxf2 {[%clk 0:00:19]}  g5 {[%clk 0:00:04]} 47. Nd4 {[%clk 0:00:18]}  Kg7 {[%clk 0:00:05]} 48. Kf3 {[%clk 0:00:19]}  Kf6 {[%clk 0:00:06]} 49. Ke4 {[%clk 0:00:19]}  Ke7 {[%clk 0:00:06]} 50. Nf5+ {[%clk 0:00:18]}  Ke6 {[%clk 0:00:05]} 51. Nxh6 {[%clk 0:00:18]}  Kd6 {[%clk 0:00:06]} 52. Ng4 {[%clk 0:00:18]}  Kc6 {[%clk 0:00:06]} 53. Kd4 {[%clk 0:00:18]}  Kb5 {[%clk 0:00:07]} 54. Kc3 {[%clk 0:00:19]}  Kc5 {[%clk 0:00:07]} 55. b4+ {[%clk 0:00:19]}  Kd5 {[%clk 0:00:06]} 56. Kb3 {[%clk 0:00:20]}  Ke4 {[%clk 0:00:06]} 57. b5 {[%clk 0:00:20]}  Kd5 {[%clk 0:00:06]} 58. Kb4 {[%clk 0:00:20]}  Kd6 {[%clk 0:00:06]} 59. Ka5 {[%clk 0:00:20]}  Kc7 {[%clk 0:00:07]} 60. Ka6 {[%clk 0:00:20]}  Kb8 {[%clk 0:00:05]} 61. Kb6 {[%clk 0:00:21]}  Kc8 {[%clk 0:00:05]} 62. Ka7 {[%clk 0:00:21]}  Kd7 {[%clk 0:00:04]} 63. b6 {[%clk 0:00:21]}  Ke6 {[%clk 0:00:05]} 64. b7 {[%clk 0:00:21]}  Kf5 {[%clk 0:00:06]} 65. Nf2 {[%clk 0:00:21]}  g4 {[%clk 0:00:00]} 66. Nxg4 {[%clk 0:00:21]} 1-0


[Site "https://www.chess.com"]

[Event "Titled Tuesday Blitz November 14 Late 2023"]
[White "Broca Jimenez, Fernando"]
[Black "Fieberg, Samuel"]
[WhiteFideId "5104742"]
[BlackFideId "12901717"]
[WhiteElo "2213"]
[BlackElo "2553"]
[Result "0-1"]
[Round "1"]
[TimeControl "180+1"]
[Date "2023.11.14"]
[WhiteClock "0:00:23"]
[BlackClock "0:00:24"]
[Board "147"]

1. e4 {[%clk 0:02:47]}  e6 {[%clk 0:02:37]} 2. d4 {[%clk 0:02:42]}  d5 {[%clk 0:02:36]} 3. exd5 {[%clk 0:02:43]}  exd5 {[%clk 0:02:36]} 4. Bd3 {[%clk 0:02:43]}  Nc6 {[%clk 0:02:36]} 5. Nf3 {[%clk 0:02:44]}  Bd6 {[%clk 0:02:35]} 6. O-O {[%clk 0:02:43]}  Nge7 {[%clk 0:02:34]} 7. Bg5 {[%clk 0:02:40]}  f6 {[%clk 0:02:34]} 8. Bh4 {[%clk 0:02:39]}  Bf5 {[%clk 0:02:32]} 9. c3 {[%clk 0:02:38]}  Qd7 {[%clk 0:02:32]} 10. Re1 {[%clk 0:02:36]}  O-O-O {[%clk 0:02:29]} 11. b4 {[%clk 0:02:37]}  Bxd3 {[%clk 0:02:23]} 12. Qxd3 {[%clk 0:02:36]}  Nf5 {[%clk 0:02:23]} 13. Bg3 {[%clk 0:02:36]}  Bxg3 {[%clk 0:02:15]} 14. hxg3 {[%clk 0:02:34]}  h5 {[%clk 0:02:15]} 15. Nbd2 {[%clk 0:02:25]}  g5 {[%clk 0:02:10]} 16. b5 {[%clk 0:01:37]}  Nce7 {[%clk 0:02:07]} 17. Re2 {[%clk 0:01:34]}  h4 {[%clk 0:01:55]} 18. g4 {[%clk 0:01:34]}  Nd6 {[%clk 0:01:51]} 19. a4 {[%clk 0:01:25]}  h3 {[%clk 0:01:49]} 20. g3 {[%clk 0:01:21]}  h2+ {[%clk 0:01:31]} 21. Nxh2 {[%clk 0:01:11]}  Rxh2 {[%clk 0:01:13]} 22. Kxh2 {[%clk 0:01:00]}  Qxg4 {[%clk 0:01:13]} 23. Rxe7 {[%clk 0:00:47]}  Rh8+ {[%clk 0:01:10]} 24. Rh7 {[%clk 0:00:42]}  Rxh7+ {[%clk 0:00:56]} 25. Qxh7 {[%clk 0:00:43]}  Qe2 {[%clk 0:00:56]} 26. Qg8+ {[%clk 0:00:20]}  Kd7 {[%clk 0:00:52]} 27. Qg7+ {[%clk 0:00:20]}  Kc8 {[%clk 0:00:49]} 28. Qf8+ {[%clk 0:00:16]}  Kd7 {[%clk 0:00:47]} 29. Qg7+ {[%clk 0:00:14]}  Kc8 {[%clk 0:00:45]} 30. Qg8+ {[%clk 0:00:10]}  Kd7 {[%clk 0:00:45]} 31. Qxd5 {[%clk 0:00:10]}  Qxd2 {[%clk 0:00:40]} 32. Qf3 {[%clk 0:00:10]}  f5 {[%clk 0:00:33]} 33. Rd1 {[%clk 0:00:10]}  Qc2 {[%clk 0:00:30]} 34. Qd3 {[%clk 0:00:10]}  Qxf2+ {[%clk 0:00:29]} 35. Kh1 {[%clk 0:00:09]}  Ne4 {[%clk 0:00:24]} 36. Rg1 {[%clk 0:00:08]}  g4 {[%clk 0:00:18]} 37. c4 {[%clk 0:00:07]}  b6 {[%clk 0:00:16]} 38. d5 {[%clk 0:00:07]}  Kd6 {[%clk 0:00:16]} 39. Qf1 {[%clk 0:00:07]}  Nxg3+ {[%clk 0:00:15]} 40. Rxg3 {[%clk 0:00:07]}  Qxg3 {[%clk 0:00:15]} 41. Qg2 {[%clk 0:00:06]}  Qxg2+ {[%clk 0:00:15]} 42. Kxg2 {[%clk 0:00:07]}  f4 {[%clk 0:00:15]} 43. Kf2 {[%clk 0:00:07]}  g3+ {[%clk 0:00:15]} 44. Kf3 {[%clk 0:00:07]}  Ke5 {[%clk 0:00:15]} 45. a5 {[%clk 0:00:07]}  Kd4 {[%clk 0:00:14]} 46. axb6 {[%clk 0:00:05]}  axb6 {[%clk 0:00:15]} 47. d6 {[%clk 0:00:05]}  cxd6 {[%clk 0:00:15]} 48. Kxf4 {[%clk 0:00:06]}  g2 {[%clk 0:00:14]} 49. Kg3 {[%clk 0:00:07]}  g1=Q+ {[%clk 0:00:14]} 50. Kf4 {[%clk 0:00:08]}  Qc1+ {[%clk 0:00:14]} 51. Kf5 {[%clk 0:00:08]}  Qxc4 {[%clk 0:00:14]} 52. Kf6 {[%clk 0:00:08]}  Qxb5 {[%clk 0:00:15]} 53. Ke7 {[%clk 0:00:09]}  Qc4 {[%clk 0:00:16]} 54. Kd7 {[%clk 0:00:09]}  b5 {[%clk 0:00:17]} 55. Ke7 {[%clk 0:00:10]}  d5 {[%clk 0:00:17]} 56. Kf6 {[%clk 0:00:10]}  b4 {[%clk 0:00:18]} 57. Ke7 {[%clk 0:00:11]}  b3 {[%clk 0:00:19]} 58. Kf6 {[%clk 0:00:12]}  b2 {[%clk 0:00:19]} 59. Ke7 {[%clk 0:00:13]}  Kc3 {[%clk 0:00:20]} 60. Kf6 {[%clk 0:00:14]}  d4 {[%clk 0:00:20]} 61. Ke7 {[%clk 0:00:15]}  d3 {[%clk 0:00:21]} 62. Kf6 {[%clk 0:00:15]}  d2 {[%clk 0:00:22]} 63. Ke7 {[%clk 0:00:16]}  Kb3 {[%clk 0:00:23]} 64. Kf6 {[%clk 0:00:17]}  Ka2 {[%clk 0:00:23]} 65. Ke7 {[%clk 0:00:18]}  Qc2 {[%clk 0:00:24]} 66. Kf6 {[%clk 0:00:19]}  b1=Q {[%clk 0:00:24]} 67. Ke7 {[%clk 0:00:20]}  Qcc1 {[%clk 0:00:24]} 68. Kf6 {[%clk 0:00:21]}  d1=Q {[%clk 0:00:24]} 69. Ke7 {[%clk 0:00:22]}  Qe3+ {[%clk 0:00:24]} 70. Kf6 {[%clk 0:00:23]}  Qf5+ {[%clk 0:00:24]} 71. Kg7 {[%clk 0:00:23]}  Qdg1+ {[%clk 0:00:24]} 72. Kh8 {[%clk 0:00:23]}  Qeh3# {[%clk 0:00:24]} 0-1


[Site "https://www.chess.com"]

[Event "Titled Tuesday Blitz November 14 Late 2023"]
[White "Ozates, Tuna"]
[Black "Vila Dupla, Aurelio"]
[WhiteFideId "6354521"]
[BlackFideId "2203383"]
[WhiteElo "2552"]
[BlackElo "2213"]
[Result "1-0"]
[Round "1"]
[TimeControl "180+1"]
[Date "2023.11.14"]
[WhiteClock "0:00:39"]
[BlackClock "0:00:00"]
[Board "148"]

1. e4 {[%clk 0:03:00]}  c5 {[%clk 0:02:57]} 2. Nf3 {[%clk 0:02:58]}  d6 {[%clk 0:02:54]} 3. c3 {[%clk 0:02:55]}  Nf6 {[%clk 0:02:53]} 4. Bd3 {[%clk 0:02:53]}  Bg4 {[%clk 0:02:51]} 5. Bc2 {[%clk 0:02:53]}  e6 {[%clk 0:02:50]} 6. d3 {[%clk 0:02:53]}  Be7 {[%clk 0:02:50]} 7. Nbd2 {[%clk 0:02:53]}  O-O {[%clk 0:02:50]} 8. h3 {[%clk 0:02:54]}  Bh5 {[%clk 0:02:48]} 9. Nf1 {[%clk 0:02:54]}  d5 {[%clk 0:02:46]} 10. Qe2 {[%clk 0:02:52]}  Nc6 {[%clk 0:02:38]} 11. Ng3 {[%clk 0:02:52]}  Bg6 {[%clk 0:02:37]} 12. h4 {[%clk 0:02:49]}  h6 {[%clk 0:02:34]} 13. h5 {[%clk 0:02:47]}  Bh7 {[%clk 0:02:34]} 14. e5 {[%clk 0:02:47]}  Nd7 {[%clk 0:02:33]} 15. a3 {[%clk 0:02:37]}  b5 {[%clk 0:02:31]} 16. b4 {[%clk 0:02:36]}  d4 {[%clk 0:02:26]} 17. cxd4 {[%clk 0:02:17]}  Nxd4 {[%clk 0:02:16]} 18. Nxd4 {[%clk 0:02:16]}  cxd4 {[%clk 0:02:14]} 19. Bf4 {[%clk 0:02:01]}  a5 {[%clk 0:02:11]} 20. O-O {[%clk 0:02:00]}  axb4 {[%clk 0:02:09]} 21. axb4 {[%clk 0:02:01]}  Qc7 {[%clk 0:02:09]} 22. Bb3 {[%clk 0:01:58]}  Qc3 {[%clk 0:01:57]} 23. Rxa8 {[%clk 0:01:46]}  Rxa8 {[%clk 0:01:54]} 24. Qf3 {[%clk 0:01:47]}  Rd8 {[%clk 0:01:44]} 25. Bxe6 {[%clk 0:01:39]}  fxe6 {[%clk 0:01:35]} 26. Qg4 {[%clk 0:01:39]}  Bf5 {[%clk 0:00:30]} 27. Nxf5 {[%clk 0:01:38]}  exf5 {[%clk 0:00:30]} 28. Qxf5 {[%clk 0:01:38]}  Nf8 {[%clk 0:00:30]} 29. Rc1 {[%clk 0:01:35]}  Qxb4 {[%clk 0:00:25]} 30. e6 {[%clk 0:01:28]}  Bf6 {[%clk 0:00:23]} 31. Bxh6 {[%clk 0:01:22]}  Qe7 {[%clk 0:00:23]} 32. Bf4 {[%clk 0:01:11]}  Qxe6 {[%clk 0:00:23]} 33. Qxb5 {[%clk 0:01:09]}  Qg4 {[%clk 0:00:23]} 34. Bg3 {[%clk 0:01:00]}  Qd7 {[%clk 0:00:22]} 35. Qb6 {[%clk 0:00:50]}  Ne6 {[%clk 0:00:22]} 36. Re1 {[%clk 0:00:46]}  Re8 {[%clk 0:00:18]} 37. Ra1 {[%clk 0:00:44]}  Re7 {[%clk 0:00:08]} 38. Ra8+ {[%clk 0:00:39]}  Kh7 {[%clk 0:00:00]} 39. Qb8 {[%clk 0:00:39]} 1-0


[Site "https://www.chess.com"]